Workbook

Sheet Llenado
A2: Actividad
C6: Valor del préstamo: | D6: 1000000
C7: Plazo: | D7: 12
C8: Tasa: | D8: 0.01
A10: Cuota | B10: Capital | C10: Interés | D10: Total | E10: Saldo
A11: 1 | B11: =PPMT(Tasa,Cuota,Plazo,-Valor_del_préstamo) -> 78848.78868 | C11: =IPMT(Tasa,Cuota,Plazo,-Valor_del_préstamo) -> 10000 | D11: =B11+C11 -> 88848.78868 | E11: =Valor_del_préstamo-SUM($B$11:B11) -> 921151.2113
A12: 2 | B12: 79637.27657 | C12: 9211.512113 | D12: 88848.78868 | E12: =Valor_del_préstamo-SUM($B$11:B12) -> 841513.9348
A13: 3 | B13: 80433.64933 | C13: 8415.139348 | D13: 88848.78868 | E13: =Valor_del_préstamo-SUM($B$11:B13) -> 761080.2854
A14: 4 | B14: 81237.98582 | C14: 7610.802854 | D14: 88848.78868 | E14: =Valor_del_préstamo-SUM($B$11:B14) -> 679842.2996
A15: 5 | B15: 82050.36568 | C15: 6798.422996 | D15: 88848.78868 | E15: =Valor_del_préstamo-SUM($B$11:B15) -> 597791.9339
A16: 6 | B16: 82870.86934 | C16: 5977.919339 | D16: 88848.78868 | E16: =Valor_del_préstamo-SUM($B$11:B16) -> 514921.0646
A17: 7 | B17: 83699.57803 | C17: 5149.210646 | D17: 88848.78868 | E17: =Valor_del_préstamo-SUM($B$11:B17) -> 431221.4865
A18: 8 | B18: 84536.57381 | C18: 4312.214865 | D18: 88848.78868 | E18: =Valor_del_préstamo-SUM($B$11:B18) -> 346684.9127
A19: 9 | B19: 85381.93955 | C19: 3466.849127 | D19: 88848.78868 | E19: =Valor_del_préstamo-SUM($B$11:B19) -> 261302.9732
A20: 10 | B20: 86235.75895 | C20: 2613.029732 | D20: 88848.78868 | E20: =Valor_del_préstamo-SUM($B$11:B20) -> 175067.2142
A21: 11 | B21: 87098.11654 | C21: 1750.672142 | D21: 88848.78868 | E21: =Valor_del_préstamo-SUM($B$11:B21) -> 87969.0977
A22: 12 | B22: 87969.0977 | C22: 879.690977 | D22: 88848.78868 | E22: =Valor_del_préstamo-SUM($B$11:B22) -> 0
